fUSD/lending_fUSD_20250206
["ID","MTS","AMOUNT","RATE_DAILY","PERIOD"]
[351948983,1738858254454,-500.0,0.00019315,3]
[351948984,1738858254464,-306.53619655,0.00019315,3]
[351948985,1738858254474,-503.50855532,0.00019315,3]
[351948986,1738858254484,-981.55,0.00019315,3]
[351948987,1738858254494,-500.0,0.00019315,3]
[351948988,1738858254504,-500.0,0.00019315,3]
[351948989,1738858254514,-500.0,0.00019315,3]
[351948990,1738858254524,-500.0,0.00019315,3]
[351948991,1738858254706,-927.33,0.00019315,3]
[351948992,1738858254729,-500.0,0.00019315,3]
[351948993,1738858254740,-500.0,0.00019315,3]
[351948994,1738858254750,-500.0,0.00019315,3]
[351948995,1738858254760,-500.0,0.00019315,3]
[351948996,1738858254769,-1002.35,0.00019315,3]
[351948997,1738858254782,-1035.46,0.00019315,3]
[351948998,1738858254791,-500.0,0.00019315,3]
[351948999,1738858254801,-500.0,0.00019315,3]
[351949000,1738858254810,-494.78813088,0.00019315,3]
[351949001,1738858255318,-5.21186912,0.00019315,3]
[351949002,1738858255328,-500.0,0.00019315,3]
[351949003,1738858255337,-1471.78,0.00019315,3]
[351949004,1738858255347,-547.04491183,0.00019315,3]
[351949005,1738858255356,-646.83,0.00019315,3]
[351949006,1738858255365,-1179.16,0.00019315,3]
[351949007,1738858255374,-500.0,0.00019315,3]
[351949008,1738858255384,-500.0,0.00019315,3]
[351949009,1738858255393,-500.98717673,0.00019315,3]
[351949010,1738858255402,-1549.5,0.00019315,3]
[351949011,1738858255412,-502.04924015,0.00019315,3]
[351949012,1738858255421,-1096.65,0.00019315,3]
[351949013,1738858255431,-676.02,0.00019315,3]
[351949014,1738858255441,-500.0,0.00019315,3]
[351949015,1738858255450,-500.0,0.00019315,3]
[351949016,1738858255460,-500.0,0.00019315,3]
[351949017,1738858255469,-500.0,0.00019315,3]
[351949018,1738858255479,-500.0,0.00019315,3]
[351949019,1738858255488,-954.96,0.00019315,3]
[351949020,1738858255499,-665.37,0.00019315,3]
[351949021,1738858255508,-500.0,0.00019315,3]
[351949022,1738858255518,-509.40178655,0.00019315,3]
[351949023,1738858255528,-412.50036655,0.00019315,3]
[351949024,1738858255540,-500.0,0.00019315,3]
[351949025,1738858255550,-500.0,0.00019315,3]
[351949026,1738858255559,-541.91,0.00019315,3]
[351949027,1738858255569,-500.0,0.00019315,3]
[351949028,1738858255580,-500.0,0.00019315,3]
[351949029,1738858255589,-500.0,0.00019315,3]
[351949030,1738858255599,-500.0,0.00019315,3]
[351949031,1738858255608,-182.31468999,0.00019315,3]
[351949032,1738858255618,-404.73624305,0.00019315,3]
[351949033,1738858255628,-992.03,0.00019315,3]
[351949034,1738858255638,-619.89,0.00019315,3]
[351949035,1738858255648,-500.0,0.00019315,3]
[351949036,1738858255658,-554.69,0.00019315,3]
[351949037,1738858255668,-500.0,0.00019315,3]
[351949038,1738858255678,-500.0,0.00019315,3]
[351949039,1738858255688,-1219.06,0.00019315,3]
[351949040,1738858255697,-500.0,0.00019315,3]
[351949041,1738858255706,-177.61422033,0.00019315,3]
[351949042,1738858255716,-959.83,0.00019315,3]
[351949043,1738858255727,-1299.03,0.00019315,3]
[351949044,1738858255737,-500.0,0.00019315,3]
[351949045,1738858255747,-500.0,0.00019315,3]
[351949046,1738858255758,-500.0,0.00019315,3]
[351949047,1738858255767,-804.9,0.00019315,3]
[351949048,1738858255777,-500.0,0.00019315,3]
[351949049,1738858255790,-648.31,0.00019315,3]
[351949050,1738858255800,-500.0,0.00019315,3]
[351949051,1738858255810,-535.73,0.00019315,3]
[351949052,1738858255820,-500.0,0.00019315,3]
[351949053,1738858255830,-500.0,0.00019315,3]
[351949054,1738858255839,-500.0,0.00019315,3]
[351949055,1738858255850,-500.0,0.00019315,3]
[351949056,1738858255859,-561.78,0.00019315,3]
[351949057,1738858255868,-500.0,0.00019315,3]
[351949058,1738858255878,-1515.98,0.00019315,3]
[351949059,1738858255887,-500.0,0.00019315,3]
[351949060,1738858255897,-619.43,0.00019315,3]
[351949061,1738858255909,-497.42170741,0.00019315,3]
[351949062,1738858255919,-530.8,0.00019315,3]
[351949063,1738858255928,-500.0,0.00019315,3]
[351949064,1738858255938,-1116.51,0.00019315,3]
[351949065,1738858255949,-500.0,0.00019315,3]
[351949066,1738858255958,-500.0,0.00019315,3]
[351949067,1738858255970,-496.52094225,0.00019315,3]
[351949068,1738858255981,-663.8,0.00019315,3]
[351949069,1738858255992,-500.0,0.00019315,3]
[351949070,1738858256002,-500.0,0.00019315,3]
[351949071,1738858256012,-500.0,0.00019315,3]
[351949072,1738858256021,-1103.42,0.00019315,3]
[351949073,1738858256032,-500.0,0.00019315,3]
[351949074,1738858256042,-517.18456396,0.00019315,3]
[351949075,1738858256052,-500.0,0.00019315,3]
[351949076,1738858256062,-500.0,0.00019315,3]
[351949077,1738858256071,-500.0,0.00019315,3]
[351949078,1738858256081,-500.0,0.00019315,3]
[351949079,1738858256092,-664.93,0.00019315,3]
[351949080,1738858256102,-822.97,0.00019315,3]
[351949081,1738858256111,-500.0,0.00019315,3]
[351949082,1738858256121,-679.37,0.00019315,3]
[351949083,1738858256131,-1249.69,0.00019315,3]
[351949084,1738858256140,-500.0,0.00019315,3]
[351949085,1738858256152,-734.01,0.00019315,3]
[351949086,1738858256164,-498.26117939,0.00019315,3]
[351949087,1738858256174,-500.0,0.00019315,3]
[351949088,1738858256183,-976.75,0.00019315,3]
[351949089,1738858256192,-500.0,0.00019315,3]
[351949090,1738858256202,-500.0,0.00019315,3]
[351949091,1738858256212,-500.0,0.00019315,3]
[351949092,1738858256224,-707.66,0.00019315,3]
[351949093,1738858256234,-500.0,0.00019315,3]
[351949094,1738858256245,-500.0,0.00019315,3]
[351949095,1738858256254,-1440.59,0.00019315,3]
[351949096,1738858256263,-500.0,0.00019315,3]
[351949097,1738858256273,-870.82,0.00019315,3]
[351949098,1738858256282,-703.79,0.00019315,3]
[351949099,1738858256292,-1110.22,0.00019315,3]
[351949100,1738858256301,-500.0,0.00019315,3]
[351949101,1738858256314,-500.0,0.00019315,3]
[351949102,1738858256324,-1852.54,0.00019315,2]
[351949103,1738858256334,-1218.78,0.00019315,3]
[351949104,1738858256343,-500.0,0.00019315,3]
[351949105,1738858256352,-500.0,0.00019315,3]
[351949106,1738858256362,-500.0,0.00019315,3]
[351949107,1738858256371,-500.0,0.00019315,3]
[351949108,1738858256381,-500.0,0.00019315,3]
[351949109,1738858256391,-500.0,0.00019315,3]
[351949110,1738858256401,-901.43,0.00019315,3]
[351949111,1738858256410,-1357.34,0.00019315,3]
[351949112,1738858256419,-500.0,0.00019315,3]
[351949113,1738858256429,-1090.09,0.00019315,3]
[351949114,1738858256438,-500.0,0.00019315,3]
[351949115,1738858256448,-500.0,0.00019315,3]
[351949116,1738858256458,-500.0,0.00019315,3]
[351949117,1738858256468,-1205.92,0.00019315,3]
[351949118,1738858256478,-500.0,0.00019315,3]
[351949119,1738858256488,-274.75157283,0.00019315,3]
[351949120,1738858256498,-767.22952987,0.00019315,3]
[351949121,1738858256515,-162.95047013,0.00019315,3]
[351949122,1738858256525,-470.08703459,0.00019315,3]
[351949123,1738858256548,-1378.5,0.00019178,2]
[351949124,1738858256558,-29.91296541,0.00019315,3]
[351949125,1738858256568,-500.0,0.00019315,3]
[351949126,1738858256578,-1518.44,0.00019315,3]
[351949127,1738858256587,-500.0,0.00019315,3]
[351949128,1738858256597,-574.72,0.00019315,3]
[351949129,1738858256607,-1605.72,0.00019315,3]
[351949130,1738858256617,-965.56,0.00019315,3]
[351949131,1738858256627,-500.0,0.00019315,3]
[351949132,1738858256636,-500.0,0.00019315,3]
[351949133,1738858256646,-500.0,0.00019315,3]
[351949134,1738858256656,-1029.84,0.00019315,3]
[351949135,1738858256666,-500.0,0.00019315,3]
[351949136,1738858256676,-500.0,0.00019315,3]
[351949137,1738858256687,-500.0,0.00019315,3]
[351949138,1738858256697,-1255.26,0.00019315,3]
[351949139,1738858256707,-500.0,0.00019315,3]
[351949140,1738858256716,-500.0,0.00019315,3]
[351949141,1738858256726,-922.1,0.00019315,3]
[351949142,1738858256735,-746.06,0.00019315,3]
[351949143,1738858256745,-500.0,0.00019315,3]
[351949144,1738858256755,-500.0,0.00019315,3]
[351949145,1738858256765,-945.53,0.00019315,3]
[351949146,1738858256775,-1226.32,0.00019315,3]
[351949147,1738858256788,-500.0,0.00019315,3]
[351949148,1738858256798,-808.83,0.00019315,3]
[351949149,1738858256809,-1302.78,0.00019315,3]
[351949150,1738858256819,-500.0,0.00019315,3]
[351949151,1738858256830,-1678.82,0.00019315,3]
[351949152,1738858256839,-500.0,0.00019315,3]
[351949153,1738858256850,-715.76,0.00019315,3]
[351949154,1738858256861,-1095.9,0.00019315,3]
[351949155,1738858256872,-500.0,0.00019315,3]
[351949156,1738858256887,-500.0,0.00019315,3]
[351949157,1738858256901,-500.0,0.00019315,3]
[351949158,1738858256918,-570.78,0.00019315,3]
[351949159,1738858256931,-997.69,0.00019315,3]
[351949160,1738858256941,-504.9969709,0.00019315,3]
[351949161,1738858256952,-660.58,0.00019315,3]
[351949162,1738858256962,-500.0,0.00019315,3]
[351949163,1738858256972,-500.0,0.00019315,3]
[351949164,1738858256983,-2224.59,0.00019315,3]
[351949165,1738858256993,-994.61,0.00019315,3]
[351949166,1738858257003,-706.61,0.00019315,3]
[351949167,1738858257013,-1482.09,0.00019315,3]
[351949168,1738858257023,-1118.96,0.00019315,3]
[351949169,1738858257033,-1306.73,0.00019315,3]
[351949170,1738858257101,-500.0,0.00019315,3]
[351949171,1738858257112,-500.0,0.00019315,3]
[351949172,1738858257122,-651.57,0.00019315,3]
[351949173,1738858257132,-514.21,0.00019315,3]
[351949174,1738858257143,-1730.22,0.00019315,3]
[351949175,1738858257154,-530.79439758,0.00019315,3]
[351949176,1738858257163,-500.0,0.00019315,3]
[351949177,1738858257172,-1553.26,0.00019315,3]
[351949178,1738858257181,-1203.34,0.00019315,3]
[351949179,1738858257192,-721.29,0.00019315,3]
[351949180,1738858257202,-3118.21,0.00019315,3]
[351949181,1738858257212,-1157.73,0.00019315,3]
[351949182,1738858257221,-500.0,0.00019315,3]
[351949183,1738858257231,-500.0,0.00019315,3]
[351949184,1738858257241,-581.33,0.00019315,3]
[351949185,1738858257250,-500.0,0.00019315,3]
[351949186,1738858257260,-1439.44,0.00019315,3]
[351949187,1738858257270,-1347.34,0.00019315,3]
[351949188,1738858257280,-500.0,0.00019315,3]
[351949189,1738858257290,-500.0,0.00019315,3]
[351949190,1738858257300,-500.0,0.00019315,3]
[351949191,1738858257310,-523.82,0.00019315,3]
[351949192,1738858257319,-500.0,0.00019315,3]
[351949193,1738858257328,-1408.36,0.00019315,3]
[351949194,1738858257338,-604.4,0.00019315,3]
[351949195,1738858257348,-1822.9,0.00019315,3]
[351949196,1738858257358,-844.32,0.00019315,3]
[351949197,1738858257368,-707.61,0.00019315,3]
[351949198,1738858257378,-1279.12,0.00019315,3]
[351949199,1738858257388,-2080.63,0.00019315,3]
[351949200,1738858257398,-910.5,0.00019315,3]
[351949201,1738858257407,-500.0,0.00019315,3]
[351949202,1738858257417,-1200.0,0.00019315,5]
[351949203,1738858257427,-1585.5,0.00019315,3]
[351949204,1738858257437,-1680.48,0.00019315,3]
[351949205,1738858257446,-1290.27,0.00019315,3]
[351949206,1738858257456,-500.0,0.00019315,3]
[351949207,1738858257466,-500.0,0.00019315,3]
[351949208,1738858257475,-500.0,0.00019315,3]
[351949209,1738858257484,-500.0,0.00019315,3]
[351949210,1738858257494,-500.0,0.00019315,3]
[351949211,1738858257503,-807.94,0.00019315,3]
[351949212,1738858257513,-1812.81,0.00019315,3]
[351949213,1738858257523,-551.66,0.00019315,3]
[351949214,1738858257532,-500.0,0.00019315,3]
[351949215,1738858257542,-1818.95,0.00019315,3]
[351949216,1738858257552,-1290.74,0.00019315,3]
[351949217,1738858257562,-894.57,0.00019315,3]
[351949218,1738858257572,-591.8,0.00019315,3]
[351949219,1738858257581,-500.0,0.00019315,3]
[351949220,1738858257591,-500.0,0.00019315,3]
[351949221,1738858257601,-1158.01,0.00019315,3]
[351949222,1738858257611,-1599.31,0.00019315,3]
[351949223,1738858257620,-1836.44,0.00019315,3]
[351949224,1738858257630,-500.0,0.00019315,3]
[351949225,1738858257639,-500.0,0.00019315,3]
[351949226,1738858257650,-862.34873186,0.00019315,3]
[351949227,1738858257660,-150.0,0.00019315,2]
[351949228,1738858257670,-781.99,0.00019315,3]
[351949229,1738858257680,-500.0,0.00019315,3]
[351949230,1738858257689,-500.0,0.00019315,3]
[351949231,1738858257699,-3409.35,0.00019315,3]
[351949232,1738858257708,-1242.23,0.00019315,3]
[351949233,1738858257718,-500.0,0.00019315,3]
[351949234,1738858257727,-1506.55,0.00019315,3]
[351949235,1738858257737,-150.0,0.00019315,2]
[351949236,1738858257747,-970.31,0.00019315,3]
[351949237,1738858257756,-2159.51751235,0.00019315,3]
[351949238,1738858257771,-631.48248765,0.00019315,3]
[351949239,1738858257783,-932.96530443,0.00019315,3]
[351949240,1738858257795,-260.72299452,0.00019315,3]
[351949241,1738858257806,-367.58584536,0.00019315,3]
[351949242,1738858257817,-348.15585569,0.00019315,3]
[351949243,1738858257826,-383.15529953,0.00019315,3]
[351949244,1738858257850,-958.83470047,0.00019315,3]
[351949245,1738858257859,-1116.4,0.00019315,3]
[351949246,1738858257868,-1542.49,0.00019315,3]
[351949247,1738858257878,-500.0,0.00019315,3]
[351949248,1738858257887,-500.0,0.00019315,3]
[351949249,1738858257897,-2191.04,0.00019315,3]
[351949250,1738858257907,-1069.59,0.00019315,3]
[351949251,1738858257916,-3558.51,0.00019315,3]
[351949252,1738858257926,-661.96,0.00019315,3]
[351949253,1738858257935,-1401.17529953,0.00019315,3]
[351949254,1738858258415,-395.40574214,0.00019,2]
[351949255,1738858258428,-104.59779886,0.00019,2]
[351949256,1738858258440,-500.0,0.00019178,2]
[351949257,1738858258448,-353.15,0.00019178,2]
[351949258,1738858258458,-449.35470047,0.00019315,3]
[351949259,1738858258468,-1067.09,0.00019315,3]
[351949260,1738858258478,-228.50750067,0.00019315,3]
[351949261,1738858258608,-271.49249933,0.00019315,3]
[351949262,1738858258618,-544.26924919,0.00019315,3]
[351949263,1738858258641,-2230.53075081,0.00019315,3]
[351949264,1738858258651,-1474.79,0.00019315,3]
[351949265,1738858258662,-907.99,0.00019315,3]
[351949266,1738858258672,-540.74,0.00019315,3]
[351949267,1738858258682,-1477.7,0.00019315,3]
[351949268,1738858258692,-1008.14,0.00019315,3]
[351949269,1738858258702,-1144.12,0.00019315,3]
[351949270,1738858258712,-1045.51,0.00019315,3]
[351949271,1738858258722,-500.0,0.00019315,3]
[351949272,1738858258731,-2184.44,0.00019315,3]
[351949273,1738858258741,-1336.51,0.00019315,3]
[351949274,1738858258752,-500.0,0.00019315,3]
[351949275,1738858258761,-1757.97,0.00019315,3]
[351949276,1738858258771,-52.21759519,0.00019315,3]
[351949277,1738858259143,-500.70553272,0.00017629,2]
[351949278,1738858259158,-607.29446728,0.00017629,2]
[351949279,1738858259168,-283.53714455,0.00019177,2]
[351949280,1738858259178,-84.70153631,0.00019178,2]
[351949281,1738858259200,-3286.77088037,0.00019173,2]
[351949282,1738858259212,-808.21151332,0.00019173,2]
[351949283,1738858259223,-106.98990788,0.00019178,2]
[351949284,1738858259244,-308.30855581,0.00019178,2]
[351949285,1738858259254,-500.0,0.00019178,2]
[351949286,1738858259265,-1527.10240481,0.00019315,3]
[351949287,1738858259274,-500.0,0.00019315,3]
[351949288,1738858259285,-1549.63,0.00019315,3]
[351949289,1738858259294,-1900.09,0.00019315,3]
[351949290,1738858259305,-1275.91,0.00019315,3]
[351949291,1738858259315,-1519.29,0.00019315,3]
[351949292,1738858259324,-500.0,0.00019315,3]
[351949293,1738858259334,-500.0,0.00019315,3]
[351949294,1738858259344,-500.0,0.00019315,3]
[351949295,1738858259354,-1920.37,0.00019315,3]
[351949296,1738858259364,-1089.82,0.00019315,3]
[351949297,1738858259374,-511.35,0.00019315,3]
[351949298,1738858259384,-1657.76,0.00019315,3]
[351949299,1738858259394,-500.0,0.00019315,3]
[351949300,1738858259404,-1442.59,0.00019315,3]
[351949301,1738858259413,-500.0,0.00019315,3]
[351949302,1738858259423,-1484.85,0.00019315,3]
[351949303,1738858259433,-500.0,0.00019315,3]
[351949304,1738858259443,-1796.14,0.00019315,3]
[351949305,1738858259452,-500.0,0.00019315,3]
[351949306,1738858259462,-500.0,0.00019315,3]
[351949307,1738858259471,-500.0,0.00019315,3]
[351949308,1738858259481,-848.35342455,0.00019315,3]
[351949309,1738858259619,-296.27351294,0.00019315,3]
[351949310,1738858259896,-500.0,0.00019178,2]
[351949311,1738858259906,-175.87248,0.00019178,2]
[351949312,1738858259918,-324.12752,0.00019178,2]
[351949313,1738858259929,-247.84747838,0.00019315,3]
[351949317,1738858350761,150.0,0.00019555,120]
[351949350,1738858526687,151.0,0.0002,120]
[351949351,1738858550247,450.770951,0.0002,120]
[351949420,1738859432176,-692.5626787,8.219e-05,2]
[351949422,1738859432188,-366.6973213,8.219e-05,2]
[351949424,1738859432198,-351.56,8.479e-05,2]
[351949426,1738859432207,-3949.9256,8.699e-05,2]
[351949427,1738859432216,-300.0,8.835e-05,2]
[351949428,1738859432227,-36274.4397,8.836e-05,2]
[351949429,1738859432236,-181.14023265,8.836e-05,2]
[351949430,1738859432247,-2500.0,8.851e-05,2]
[351949431,1738859432257,-500.0,8.912e-05,2]
[351949432,1738859432266,-150.0,8.972e-05,2]
[351949433,1738859432275,-22465.84194325,8.973e-05,2]
[351949434,1738859432288,-14878.48885675,8.973e-05,2]
[351949435,1738859432298,-283.6417,8.973e-05,2]
[351949436,1738859432308,-158.18,9.157e-05,2]
[351949437,1738859432317,-158.18,9.16e-05,2]
[351949438,1738859432327,-158.18,9.162e-05,2]
[351949439,1738859432336,-158.18,9.165e-05,2]
[351949440,1738859432345,-158.18,9.167e-05,2]
[351949441,1738859432355,-158.18,9.17e-05,2]
[351949442,1738859432364,-158.18,9.172e-05,2]
[351949443,1738859432374,-158.18,9.174e-05,2]
[351949444,1738859432383,-158.18,9.177e-05,2]
[351949445,1738859432392,-158.18,9.179e-05,2]
[351949446,1738859432401,-158.18,9.182e-05,2]
[351949447,1738859432410,-158.18,9.184e-05,2]
[351949448,1738859432421,-158.18,9.186e-05,2]
[351949449,1738859432431,-158.18,9.189e-05,2]
[351949450,1738859432440,-158.18,9.191e-05,2]
[351949451,1738859432450,-158.18,9.194e-05,2]
[351949452,1738859432460,-158.18,9.196e-05,2]
[351949453,1738859432470,-158.18,9.198e-05,2]
[351949454,1738859432479,-158.18,9.201e-05,2]
[351949455,1738859432489,-158.18,9.203e-05,2]
[351949456,1738859432502,-243.68,9.339e-05,2]
[351949457,1738859432511,-500.0,9.562e-05,2]
[351949458,1738859432521,-1600.0,9.6e-05,3]
[351949459,1738859432530,-3400.0,9.6e-05,3]
[351949460,1738859432540,-3200.0,9.7e-05,3]
[351949461,1738859432549,-6800.0,9.7e-05,3]
[351949462,1738859432560,-420.0,9.718e-05,2]
[351949463,1738859432570,-500.0,9.736e-05,2]
[351949464,1738859432579,-4800.0,9.8e-05,3]
[351949465,1738859432589,-10200.0,9.8e-05,3]
[351949466,1738859432600,-153.282885,9.881e-05,2]
[351949467,1738859432611,-152.409931,9.881e-05,2]
[351949468,1738859432620,-185.704752,9.881e-05,2]
[351949469,1738859432630,-187.351371,9.881e-05,2]
[351949470,1738859432640,-185.704746,9.881e-05,2]
[351949471,1738859432649,-187.351372,9.881e-05,2]
[351949472,1738859432659,-185.704746,9.881e-05,2]
[351949473,1738859432668,-187.351371,9.881e-05,2]
[351949474,1738859432678,-185.704748,9.881e-05,2]
[351949475,1738859432687,-6400.0,9.9e-05,3]
[351949476,1738859432697,-13700.0,9.9e-05,3]
[351949477,1738859432707,-500.0,9.973e-05,2]
[351949478,1738859432716,-277.25493448,9.973e-05,2]
[351949479,1738859432725,-500.0,9.999e-05,2]
[351949480,1738859432735,-500.0,9.999e-05,2]
[351949481,1738859432744,-219.03872756,9.999e-05,2]
[351949482,1738859432754,-500.0,9.999e-05,2]
[351949483,1738859432764,-500.0,9.999e-05,2]
[351949484,1738859432773,-238.693422,9.999e-05,2]
[351949485,1738859432783,-55559.66603813,0.0001,2]
[351949486,1738859432796,-22968.202222,0.0001,2]
[351949487,1738859432808,-9559.858178,0.0001,2]
[351949488,1738859432820,-1012.5036042,0.0001,2]
[351949489,1738859432831,-55227.5360223,0.0001,2]
[351949490,1738859433066,-3262.1,0.0001,2]
[351949491,1738859435734,-3081.97164808,0.0001,2]
[351949492,1738859435746,-29932.55788102,0.0001,2]
[351949493,1738859435759,-1000.0,0.0001,2]
[351949494,1738859435882,-684.04122533,0.0001,2]
[351949495,1738859435895,-547.91945619,0.0001,2]
[351949496,1738859435907,-500.0,0.0001,2]
[351949504,1738859438102,-805.94328253,8.836e-05,2]
[351949505,1738859438304,-2.26823079,8.836e-05,2]
[351949506,1738859438315,-2598.62038642,0.0001,2]
[351949507,1738859438327,-3341.98188124,0.0001,2]
[351949508,1738859438338,-753.30203135,0.0001,2]
[351949509,1738859438370,-89406.64529814,0.0001,2]
[351949510,1738859438380,-3737652.21278701,0.0001,2]
[351949511,1738859438390,-1850.70429409,0.0001,2]
[351949512,1738859438400,-8000.0,0.0001,3]
[351949513,1738859438409,-2331.38389763,0.0001,2]
[351949514,1738859438419,-17100.0,0.0001,3]
[351949515,1738859438429,-1062.41592655,0.0001,2]
[351949516,1738859438438,-6078.77515364,0.0001,2]
[351949518,1738859438447,-180.6218958,0.0001,2]
[351949520,1738859438456,-418.43376586,0.0001,2]
[351949522,1738859438466,-322.96236689,0.0001,2]
[351949524,1738859438475,-153.282885,0.00010018,2]
[351949526,1738859438486,-152.409931,0.00010018,2]
[351949528,1738859438499,-249.04508937,0.000101,2]
[351949530,1738859438510,-198.17365636,0.00010136,2]
[351949532,1738859438519,-165.01,0.00010137,2]
[351949534,1738859438531,-153.282885,0.00010292,2]
[351949536,1738859438540,-152.409931,0.00010292,2]
[351949538,1738859438551,-153.282885,0.00010429,2]
[351949540,1738859438560,-152.409931,0.00010429,2]
[351949542,1738859438572,-1059.26,0.00010438,2]
[351949543,1738859438582,-1000.0,0.00010521,2]
[351949545,1738859438593,-152.409931,0.00010566,2]
[351949547,1738859438602,-291.06134386,0.00010619,2]
[351949549,1738859438612,-157.82,0.00010685,2]
[351949551,1738859438622,-587.0,0.0001069,2]
[351949553,1738859438632,-153.282885,0.00010703,2]
[351949555,1738859438642,-214.19806872,0.000108,2]
[351949568,1738859438710,-153.282885,0.0001084,2]
[351949572,1738859438720,-152.409931,0.0001084,2]
[351949574,1738859438729,-490.04,0.00010959,2]
[351949577,1738859438739,-150.0,0.00010959,2]
[351949579,1738859438749,-152.409931,0.00010977,2]
[351949581,1738859438759,-161002.47088074,0.00011,2]
[351949583,1738859438768,-45441.89019518,0.00011099,2]
[351949585,1738859438778,-45441.89019514,0.00011099,2]
[351949587,1738859438787,-153.282885,0.00011114,2]
[351949589,1738859438796,-152.409931,0.00011114,2]
[351949591,1738859438806,-187.351371,0.00011114,2]
[351949593,1738859438817,-187.351372,0.00011114,2]
[351949595,1738859438827,-185.704746,0.00011114,2]
[351949597,1738859438837,-322.96236687,0.00011214,2]
[351949598,1738859438847,-153.282885,0.00011251,2]
[351949600,1738859438856,-152.409931,0.00011388,2]
[351949602,1738859438866,-1500.0,0.00011522,2]
[351949604,1738859438875,-45441.89019514,0.00011763,2]
[351949606,1738859438885,-4519.06598287,0.000119,2]
[351949608,1738859438895,-1062.41592651,0.00012366,2]
[351949610,1738859438904,-1059.26,0.00012657,2]
[351949612,1738859438914,-45441.89019514,0.00012695,2]
[351949614,1738859438924,-218.93348476,0.0001282,2]
[351949616,1738859438933,-618.57,0.00012889,2]
[351949618,1738859438943,-157.82,0.00013356,2]
[351949620,1738859438952,-45441.89019514,0.00013626,2]
[351949622,1738859438962,-177.96,0.000137,2]
[351949624,1738859438971,-177.96,0.000137,2]
[351949626,1738859438980,-150.0,0.0001449,2]
[351949628,1738859438989,-150.0,0.00014539,2]
[351949630,1738859438999,-45441.89019514,0.00014558,2]
[351949632,1738859439008,-500.0,0.00014681,2]
[351949634,1738859439018,-150.0,0.00014816,2]
[351949636,1738859439027,-1062.41592651,0.00014832,2]
[351949638,1738859439037,-1059.26,0.00014876,2]
[351949640,1738859439046,-150.0,0.00014982,2]
[351949642,1738859439055,-150.0,0.00015,20]
[351949644,1738859439068,-2331.38389761,0.00015158,2]
[351949646,1738859439080,-6078.77515363,0.00015158,2]
[351949648,1738859439089,-418.43376584,0.00015158,2]
[351949650,1738859439098,-5025.82,0.00015249,2]
[351949651,1738859439107,-625.94,0.00015319,2]
[351949653,1738859439117,-500.0,0.00015344,2]
[351949656,1738859439127,-282.84,0.00015359,2]
[351949658,1738859439137,-45441.89019514,0.00015489,2]
[351949660,1738859439148,-1000.0,0.00015495,2]
[351949662,1738859439158,-150.0,0.00015576,2]
[351949664,1738859439169,-150.0,0.0001568,2]
[351949666,1738859439179,-150.0,0.00015691,2]
[351949668,1738859439189,-3055.0,0.000159,2]
[351949670,1738859439199,-150.0,0.0001601,2]
[351949672,1738859439209,-157.82,0.00016027,2]
[351949674,1738859439219,-150.0,0.00016063,2]
[351949676,1738859439229,-21869.0,0.00016156,2]
[351949678,1738859439239,-105136.08876936,0.0001618,2]
[351949680,1738859439248,-150.0,0.00016248,2]
[351949682,1738859439257,-45441.89019514,0.00016421,2]
[351949684,1738859439267,-150.0,0.00016438,2]
[351949686,1738859439276,-223.97,0.00016445,2]